fUST/lending_fUST_20240329
["ID","MTS","AMOUNT","RATE_DAILY","PERIOD"]
[320856724,1711641624729,19075.56723381,0.0002,2]
[320856725,1711641633442,156.10838949,0.0002,2]
[320856726,1711641636783,5175.26710662,0.000198,2]
[320856727,1711641642727,4215.23370884,0.0002,2]
[320856728,1711641654781,345.4871577,0.000198,2]
[320856734,1711641782981,-189.55614833,0.0003,120]
[320856735,1711641810728,-345.87366112,0.000299,2]
[320856736,1711641810748,-204.93563212,0.00029984,2]
[320856737,1711641810768,-214.84912842,0.00029984,2]
[320856738,1711641810786,-155.0294556,0.00029984,2]
[320856739,1711641810806,-305.31148423,0.00029985,2]
[320856740,1711641810825,-359.79078531,0.00029986,2]
[320856741,1711641810845,-1923.60875348,0.00029987,2]
[320856742,1711641810863,-201.27678922,0.00029989,2]
[320856743,1711641810883,-155.33785012,0.00029997,2]
[320856744,1711641810901,-739.95776412,0.00029997,2]
[320856745,1711641810921,-155.70945394,0.00029997,2]
[320856746,1711641810940,-155.30490084,0.00029998,2]
[320856747,1711641810958,-8663.5323661,0.00029999,2]
[320856748,1711641818533,-1923.60875348,0.00029899,2]
[320856749,1711641818553,-11656.90927114,0.00029999,2]
[320856750,1711641829149,-257.5546401,0.00029997,2]
[320856751,1711641829169,-164.09786632,0.00029997,2]
[320856752,1711641829187,-437.86513621,0.00029998,2]
[320856753,1711641829205,-12721.00038199,0.00029999,2]
[320856770,1711642033548,-187.40381972,0.00027898,2]
[320856771,1711642033574,-418.65610052,0.00027899,2]
[320856772,1711642033600,-207.80302942,0.00029997,2]
[320856773,1711642033626,-215.33567274,0.00029997,2]
[320856774,1711642033652,-538.8013776,0.00029999,2]
[320856852,1711642232516,-323.06201414,0.00029899,2]
[320856854,1711642232526,-165.30357915,0.000299,4]
[320856856,1711642232536,-13828.42383968,0.00029999,2]
[320856858,1711642232545,-12982.0,0.0003,2]
[320856860,1711642232554,-598.51802462,0.00031574,2]
[320856862,1711642232564,-760.6491047,0.00031575,2]
[320856864,1711642232573,-1008.82082666,0.00031975,2]
[320856866,1711642232582,-171.704629,0.00032122,2]
[320856869,1711642232591,-418.65610052,0.00032899,2]
[320856872,1711642232600,-162.35798589,0.00033,4]
[320856875,1711642232609,-639.44104133,0.00033573,2]
[320856878,1711642232618,-166.666666,0.00033697,2]
[320856881,1711642232627,-462.83333431,0.00034,4]
[320856884,1711642232639,-1500.4252164,0.00034104,2]
[320856887,1711642232649,-209.510756,0.00034311,2]
[320856890,1711642232659,-5375.33013,0.0003437,120]
[320856893,1711642232668,-316.20929739,0.00034515,2]
[320856896,1711642232678,-166.666666,0.00034615,2]
[320856899,1711642232686,-594.04194787,0.00035,2]
[320856902,1711642232696,-6916.97492643,0.00035,4]
[320856905,1711642232705,-669.16801462,0.00035,2]
[320856908,1711642232714,-620.97205207,0.00035252,2]
[320856911,1711642232723,-166.666666,0.00035534,2]
[320856914,1711642232733,-166.666666,0.00036453,2]
[320856915,1711642232743,-169.230772,0.00036986,2]
[320856917,1711642232753,-620.0486026,0.00037015,2]
[320856920,1711642232763,-166.666666,0.00037371,2]
[320856921,1711642232773,-418.65610052,0.00037899,2]
[320856923,1711642232782,-166.666666,0.0003829,2]
[320856925,1711642232791,-30352.973498,0.00039397,2]
[320856927,1711642232800,-5375.33013,0.00040099,120]
[320856929,1711642232809,-151.0,0.000403,30]
[320856931,1711642232819,-9599.55840381,0.00040365,2]
[320856933,1711642232828,-316.20929735,0.00042861,2]
[320856935,1711642232836,-456.30096978,0.00045826,120]
[320856937,1711642232845,-296.57240404,0.00045826,120]
[320856939,1711642232854,-440.56031006,0.00045827,120]
[320856942,1711642232866,-270.33906,0.00045827,120]
[320856971,1711642238431,-4664.43075994,0.00045827,120]
[320856972,1711642238442,-16035.34504841,0.00049,30]
[320856973,1711642238454,-1046.64881673,0.0005,2]
[320856974,1711642238463,-316.20929735,0.00051206,2]
[320856975,1711642238472,-8488.80713685,0.00051554,120]
[320856977,1711642238481,-5375.33013,0.00051555,120]
[320856978,1711642238490,-305.31148423,0.00055678,4]
[320856979,1711642238500,-560.43965227,0.00055678,4]
[320856980,1711642238511,-187.35685752,0.00055679,4]
[320856981,1711642238522,-24900.0,0.0005568,2]
[320856982,1711642238532,-316.20929735,0.00059552,2]
[320856983,1711642238541,-319.36573979,0.00059998,4]
[320856984,1711642238550,-270.33906,0.00059999,4]
[320856985,1711642238559,-1347.6754204,0.0006,120]
[320856986,1711642238569,-151.03171666,0.00060118,2]
[320856987,1711642238578,-302.06343332,0.00061128,4]
[320856988,1711642238588,-5600.0,0.00065,120]
[320856989,1711642238597,-316.20929735,0.00067897,2]
[320856990,1711642238607,-2564.2145524,0.00067968,120]
[320856991,1711642238616,-9707.940502,0.0006797,120]
[320856992,1711642238626,-208.22835383,0.00067997,120]
[320856993,1711642238635,-500.0,0.00067997,120]
[320856994,1711642238645,-500.0,0.00067997,120]
[320856995,1711642238654,-413.73774778,0.00067997,120]
[320856996,1711642238663,-399.24223577,0.00067997,31]
[320856997,1711642238673,-504.43239371,0.00067997,120]
[320856998,1711642238682,-500.0,0.00067997,120]
[320856999,1711642238691,-744.80165041,0.00067997,7]
[320857000,1711642238700,-610.76219752,0.00067998,7]
[320857001,1711642238709,-477.71422477,0.00067998,7]
[320857002,1711642238718,-193.51714373,0.00067998,7]
[320857003,1711642238728,-566.38605554,0.00067998,7]
[320857004,1711642238737,-441.29115281,0.00067998,7]
[320857005,1711642238747,-306.72293115,0.00067998,7]
[320857006,1711642238756,-155.90934704,0.00067998,7]
[320857007,1711642238765,-251.26084319,0.00067998,7]
[320857008,1711642238774,-1104.30666053,0.00067998,7]
[320857009,1711642238785,-1936.12064551,0.00067998,7]
[320857010,1711642238795,-161.38626272,0.00067999,90]
[320857011,1711642238806,-160.0,0.00067999,90]
[320857012,1711642238815,-298859.50993824,0.00068,120]
[320857013,1711642238828,-498.68094,0.00068,120]
[320857014,1711642238839,-825.95947612,0.00068,120]
[320857017,1711642240476,-43458.46921311,0.00068,120]
[320857040,1711642243545,-362.23346075,0.00068,120]
[320857042,1711642243557,-1567.55844146,0.00068,120]
[320857047,1711642243600,-11786.50425197,0.00068,120]
[320857049,1711642243612,-2062.0210665,0.00068,120]
[320857098,1711643432496,-391.71628924,0.00032988,4]
[320857100,1711643432506,-598.51802462,0.00032995,2]
[320857102,1711643432515,-956.05947146,0.00032997,4]
[320857104,1711643432524,-162.35798589,0.00033,4]
[320857106,1711643432533,-462.83333431,0.00052578,4]
[320857108,1711643432542,-166.666666,0.00052579,2]
[320857110,1711643432551,-92.12822848,0.00054013,2]
[320857112,1711643432563,-74.53843752,0.00054013,2]
[320857114,1711643432572,-166.666666,0.00055446,2]
[320857116,1711643432581,-166.666666,0.00056879,2]
[320857118,1711643432590,-166.666666,0.00058313,2]
[320857120,1711643432600,-1229.81018419,0.00059445,2]
[320857375,1711643438793,-3013.27422522,0.00059445,2]
[320857378,1711643438805,-20656.91559059,0.00059445,2]
[320857379,1711643438815,-166.666666,0.00059746,2]
[320857381,1711643438825,-205.1816568,0.00059998,4]
[320857383,1711643438835,-319.36573979,0.00059999,4]
[320857385,1711643438845,-51727.62505931,0.0006,2]
[320857387,1711643438855,-158.10464869,0.00061797,2]
[320857388,1711643438865,-14439.86391637,0.00061897,2]
[320857390,1711643438874,-500.0,0.00061954,120]
[320857392,1711643438884,-488.83540754,0.00061954,120]
[320857394,1711643438893,-2320.0,0.00061955,120]
[320857396,1711643438902,-352.0,0.000627,120]
[320857398,1711643438912,-30310.6148503,0.00063794,61]
[320857399,1711643438921,-2564.2145524,0.00063794,120]
[320857401,1711643438930,-2587.02471988,0.00063796,7]
[320857403,1711643438941,-160.0,0.00063797,90]
[320857405,1711643438950,-5616.06584635,0.00063798,120]
[320857407,1711643438959,-5132.83759138,0.000638,5]
[320857408,1711643438968,-158.10464867,0.00063831,2]
[320857410,1711643438977,-158.10464867,0.00065865,2]
[320857412,1711643438986,-577.7835108,0.000659,4]
[320857414,1711643438995,-158.10464867,0.00067899,2]
[320857416,1711643439005,-9707.9405017,0.0006797,120]
[320857418,1711643439014,-504.43239371,0.00067998,120]
[320857420,1711643439024,-399.24223577,0.00067998,31]
[320857421,1711643439033,-500.0,0.00067998,120]
[320857423,1711643439043,-208.22835383,0.00067998,120]
[320857425,1711643439052,-500.0,0.00067998,120]
[320857427,1711643439062,-500.0,0.00067998,120]
[320857429,1711643439070,-413.73774778,0.00067998,120]
[320857430,1711643439079,-161.38626272,0.00067998,90]
[320857432,1711643439088,-275.31142188,0.00067998,7]
[320857434,1711643439097,-253.93361347,0.00067998,7]
[320857436,1711643439106,-1936.12064551,0.00067998,7]
[320857437,1711643439115,-155.90934704,0.00067998,7]
[320857438,1711643439124,-306.72293115,0.00067998,7]
[320857439,1711643439133,-1104.30666053,0.00067998,7]
[320857440,1711643439142,-566.38605554,0.00067998,7]
[320857441,1711643439152,-441.29115281,0.00067998,7]
[320857442,1711643439161,-610.76219752,0.00067998,7]
[320857443,1711643439171,-744.80165041,0.00067998,7]
[320857444,1711643439180,-251.26084319,0.00067998,7]
[320857445,1711643439191,-193.51714373,0.00067998,7]
[320857446,1711643439200,-63170.40254103,0.00067999,7]
[320857447,1711643439209,-322.82896,0.00067999,7]
[320857448,1711643439218,-107904.44244199,0.00068,120]
[320857455,1711643442418,-650.07932426,0.00068,120]
[320857555,1711643443897,-1795.789,0.00068,120]
[320857557,1711643443909,-1770.11906325,0.00068,120]
[320857560,1711643443920,-6718.00017482,0.00068,120]
[320857651,1711643446961,-718.36546379,0.00068,120]
[320857652,1711643447018,-7478.4974655,0.00068,120]
[320857662,1711644192727,309.9690031,0.00019,2]
[320857663,1711644233135,155.03255684,0.00019,2]
[320857664,1711644246459,155.3436721,0.00019,2]
[320857669,1711644376088,-1714.71572363,0.00032661,10]
[320857728,1711644632669,-155.03255684,0.0003055,4]
[320857730,1711644632679,-391.71628924,0.0003055,4]
[320857732,1711644632689,-251.79016085,0.00030551,4]
[320857734,1711644632699,-210.39635392,0.00030552,4]
[320857736,1711644632708,-205.41840338,0.00030553,4]
[320857738,1711644632717,-657.37253927,0.00030561,2]
[320857740,1711644632726,-310.10836858,0.00033,4]
[320857742,1711644632734,-365.00349675,0.00034,4]
[320857744,1711644632747,-97.82983756,0.00034,4]
[320857747,1711644632756,-657.37253927,0.00035561,2]
[320857749,1711644632765,-9586.13458156,0.00047999,4]
[320857936,1711644636403,-34454.20470587,0.00048,120]
[320857976,1711644638669,-63210.28343995,0.00047999,4]
[320857978,1711644638678,-500.0,0.00047999,120]
[320857980,1711644638687,-488.83540754,0.00047999,120]
[320857982,1711644638696,-16035.34504841,0.00049,30]
[320857984,1711644638707,-189.72557841,0.00049897,2]
[320857986,1711644638717,-205.1816568,0.00049997,4]
[320857988,1711644638726,-560.43965227,0.00049997,4]
[320857989,1711644638735,-305.31148423,0.00049997,4]
[320857991,1711644638745,-319.36573979,0.00049998,4]
[320857993,1711644638754,-399.24223577,0.00049999,31]
[320857995,1711644638763,-500.0,0.00049999,120]
[320857997,1711644638773,-504.43239371,0.00049999,120]
[320857998,1711644638783,-500.0,0.00049999,120]
[320857999,1711644638792,-413.73774778,0.00049999,120]
[320858000,1711644638801,-500.0,0.00049999,120]
[320858001,1711644638810,-208.22835383,0.00049999,120]
[320858002,1711644638819,-15155.30742515,0.0005,61]
[320858003,1711644638828,-96301.03229204,0.0005,30]
[320858004,1711644638838,-8488.80713685,0.0005,120]
[320858005,1711644638847,-1046.64881673,0.0005,2]
[320858006,1711644638857,-189.72557841,0.00050629,2]
[320858008,1711644638866,-189.72557841,0.00051361,2]
[320858009,1711644638875,-189.72557841,0.00052093,2]
[320858010,1711644638885,-189.72557841,0.00052825,2]
[320858011,1711644638894,-171.704629,0.00052925,2]
[320858012,1711644638903,-2401.86,0.00059,30]
[320858013,1711644638912,-1960.17085223,0.0006,120]
[320858015,1711644638921,-454.0,0.0006,30]
[320858016,1711644638930,-51405.53693456,0.0006,2]
[320858018,1711644638940,-151.03020604,0.00061938,2]
[320858019,1711644638949,-302.06041208,0.00062979,4]
[320858020,1711644638960,-5132.83759138,0.000638,5]
[320858021,1711644638969,-166.666666,0.00064337,2]
[320858022,1711644638979,-30000.0,0.000654,120]
[320858023,1711644638988,-2587.02471988,0.00065504,7]
[320858024,1711644638997,-160.0,0.00065507,90]
[320858025,1711644639007,-24900.0,0.00065508,2]
[320858026,1711644639017,-248.14598933,0.000657,2]
[320858027,1711644639026,-200.0,0.00065987,2]
[320858028,1711644639035,-200.0,0.00066987,2]
[320858029,1711644639158,-193.51714373,0.00066993,7]
[320858030,1711644639173,-744.80165041,0.00066993,7]
[320858031,1711644639182,-610.76219752,0.00066993,7]
[320858032,1711644639192,-441.29115281,0.00066993,7]
[320858033,1711644639203,-566.38605554,0.00066993,7]
[320858034,1711644639212,-1104.30666053,0.00066993,7]
[320858035,1711644639222,-155.90934704,0.00066993,7]
[320858036,1711644639231,-306.72293115,0.00066993,7]
[320858037,1711644639241,-1936.12064551,0.00066993,7]
[320858038,1711644639250,-251.26084319,0.00066994,7]
[320858039,1711644639260,-161.38626272,0.00066995,90]
[320858040,1711644639271,-2564.2145524,0.00067899,120]
[320858041,1711644639280,-1591.72568568,0.000679,2]
[320858042,1711644639289,-9707.940502,0.0006797,120]
[320858043,1711644639300,-200.0,0.00067987,2]
[320858044,1711644639310,-322.82896,0.00067998,7]
[320858045,1711644639319,-598.87932927,0.00067999,2]
[320858046,1711644639328,-38615.90858398,0.00068,120]
[320858047,1711644639346,-475.5,0.00068,120]
[320858082,1711644646730,-171.99052288,0.00067999,7]
[320858083,1711644646739,-128.79668712,0.00068,120]
[320858085,1711644646751,-2614.20349391,0.00068,120]
[320858086,1711644646786,-251640.10072986,0.00068,120]
[320858101,1711644841336,18511.17782751,0.00015498,2]
[320858102,1711644855084,11348.55490377,0.0001999,2]
[320858103,1711644856862,2319.45874615,0.000125,2]
[320858104,1711644867488,400.0,0.00012,7]
[320858109,1711645088877,-853.29309694,0.00049899,120]
[320858110,1711645088899,-4762.77274941,0.0005,120]
[320858206,1711645831895,-462.83333431,0.00036899,4]
[320858208,1711645831905,-248.14598933,0.000369,2]
[320858209,1711645831914,-433.4950288,0.00037,30]
[320858211,1711645831924,-219.12417975,0.000479,2]
[320858213,1711645831934,-2869.10596494,0.00049798,2]
[320858216,1711645831949,-11570.75795143,0.00049798,2]
[320858218,1711645831958,-853.29309694,0.0005,120]
[320858220,1711645831967,-166.666666,0.00052261,2]
[320858222,1711645831976,-219.12417975,0.000529,2]
[320858224,1711645831985,-2320.0,0.00053245,2]
[320858226,1711645831994,-1343.832532,0.00053423,120]
[320858228,1711645832003,-166.666666,0.00054635,2]
[320858230,1711645832012,-166.666666,0.0005701,2]
[320858232,1711645832021,-219.12417975,0.000579,2]
[320858234,1711645832032,-166.666666,0.00059385,2]
[320858236,1711645832041,-24900.0,0.00061487,2]
[320858238,1711645832050,-1343.832532,0.00062326,120]
[320858240,1711645832059,-5132.83759138,0.000638,5]
[320858241,1711645832068,-151.03020604,0.00064112,2]
[320858244,1711645832078,-1501.40091953,0.00065,2]
[320858245,1711645832087,-302.06041208,0.0006519,4]
[320858246,1711645832096,-5348.69402943,0.00066377,7]
[320858248,1711645832105,-4000.0,0.000668,120]
[320858250,1711645832114,-3312.08658333,0.00066874,120]
[320858252,1711645832124,-3312.08658333,0.00066897,120]
[320858254,1711645832133,-3312.08658333,0.00066937,120]
[320858256,1711645832142,-3312.08658333,0.00066955,120]
[320858258,1711645832152,-3312.08658333,0.00066958,120]
[320858260,1711645832162,-3312.08658333,0.0006699,120]
[320858262,1711645832171,-3312.08658333,0.00066994,120]
[320858264,1711645832180,-2564.2145514,0.00066996,120]
[320858266,1711645832189,-1680.3542953,0.0006787,120]
[320858303,1711645838744,-730.27781794,0.0006787,120]
[320858304,1711645838754,-160.44048518,0.000679,120]
[320858305,1711645838802,-726.0,0.000679,120]
[320858312,1711645839856,-966.0,0.000679,120]
[320858313,1711645839868,-2147.55951482,0.000679,120]
[320858314,1711645839877,-4909.45631953,0.0006797,61]
[320858315,1711645839967,-2465.74508165,0.0006797,61]
[320858317,1711645839979,-15357.75973654,0.0006797,61]
[320858318,1711645839988,-9707.940502,0.0006797,120]
[320858319,1711645839998,-209.1773492,0.0006799,120]
[320858320,1711645840007,-230.39109,0.00067997,7]
[320858321,1711645840016,-598.87932927,0.00067997,2]
[320858322,1711645840026,-322.82896,0.00067997,7]
[320858323,1711645840036,-251.26084319,0.00067997,7]
[320858324,1711645840045,-155.90934704,0.00067997,7]
[320858325,1711645840054,-441.29115281,0.00067997,7]
[320858326,1711645840064,-306.72293115,0.00067997,7]
[320858327,1711645840073,-744.80165041,0.00067997,7]
[320858328,1711645840083,-566.38605554,0.00067997,7]
[320858329,1711645840092,-193.51714373,0.00067997,7]
[320858330,1711645840102,-1104.30666053,0.00067997,7]
[320858331,1711645840111,-610.76219752,0.00067997,7]
[320858332,1711645840120,-2587.02471988,0.00067997,7]
[320858333,1711645840130,-210.87811855,0.00067998,7]
[320858334,1711645840139,-205.41840338,0.00067998,7]
[320858335,1711645840148,-276.45968392,0.00067998,7]
[320858336,1711645840159,-161.38626272,0.00067998,90]
[320858337,1711645840168,-253.93361347,0.00067999,7]
[320858338,1711645840178,-12053.01621631,0.00067999,7]
[320858353,1711645843106,-5617.5879033,0.00067999,7]
[320858354,1711645843120,-373.29,0.00067999,7]
[320858357,1711645843232,-1.3638489,0.00067999,7]
[320858359,1711645843244,-14106.68023996,0.00067999,7]
[320858513,1711645846016,-5611.32274166,0.00067999,7]
[320858514,1711645846026,-322.08812475,0.00067999,2]
[320858515,1711645846035,-430.47102587,0.00067999,120]
[320858516,1711645846044,-500.0,0.00067999,120]
[320858517,1711645846054,-563.73774778,0.00067999,120]
[320858518,1711645846063,-160.0,0.00067999,90]
[320858519,1711645846073,-1012.98516007,0.00068,120]
[320858521,1711646123768,162.35798589,0.00033,4]
[320858522,1711646125081,231.71325716,0.00019,2]
[320858523,1711646127056,5100.0,0.00045,2]
[320858524,1711646149737,198.70489464,0.00033,4]
[320858525,1711646176849,3807.22386231,0.00045,4]
[320858542,1711647013403,-670.0,0.00042037,120]
[320858845,1711647038015,-165.01166634,0.00042009,4]
[320858847,1711647038025,-155.02635448,0.00042009,4]
[320858849,1711647038034,-155.02635448,0.0004201,4]
[320858851,1711647038044,-314.6804332,0.0004201,4]
[320858853,1711647038053,-155.02635448,0.0004201,2]
[320858856,1711647038062,-155.02635448,0.0004201,4]
[320858858,1711647038071,-155.02635448,0.00042011,4]
[320858860,1711647038081,-155.02635448,0.00042012,4]
[320858862,1711647038091,-1999.74190512,0.00042012,4]
[320858864,1711647038100,-155.02635448,0.00042013,4]
[320858867,1711647038109,-500.95474572,0.00042014,4]
[320858870,1711647038118,-155.02635448,0.00042015,4]
[320858873,1711647038127,-8517.86038161,0.00042015,4]
[320858876,1711647038136,-1.916266,0.00042037,120]
[320858880,1711647038145,-200.0,0.00042279,2]
[320858882,1711647038154,-171.7046292,0.00042966,2]
[320858884,1711647038163,-24900.0,0.00044178,2]
[320858886,1711647038172,-374.90438405,0.0004445,2]
[320858887,1711647038181,-885.69481658,0.0004455,2]
[320858890,1711647038191,-25483.47438538,0.00045,4]
[320858892,1711647038200,-374.90438402,0.00048684,2]
[320858894,1711647038210,-671.916266,0.00049043,120]
[320858896,1711647038219,-1046.64881673,0.0005,2]
[320858898,1711647038227,-8488.80713685,0.0005,120]
[320858900,1711647038237,-374.90438402,0.00052918,2]
[320858902,1711647038246,-541.65,0.00054794,120]
[320858904,1711647038255,-500.0,0.00054794,120]
[320858906,1711647038264,-500.0,0.00054794,120]
[320858908,1711647038273,-500.0,0.00054794,120]
[320858909,1711647038282,-500.0,0.00054794,120]
[320858911,1711647038291,-2537.82,0.00054794,120]
[320858913,1711647038301,-500.0,0.00054794,120]
[320858915,1711647038310,-500.0,0.00054794,120]
[320858918,1711647038320,-500.0,0.00054794,120]
[320858919,1711647038329,-500.0,0.00054794,120]
[320858921,1711647038340,-500.0,0.00054794,120]
[320858924,1711647038350,-1147.66,0.00054794,120]
[320858926,1711647038359,-291.74448332,0.00054794,120]
[320858928,1711647038368,-2542.95,0.00054794,120]
[320858930,1711647038377,-500.0,0.00054794,120]
[320858932,1711647038386,-500.0,0.00054794,120]
[320858934,1711647038395,-500.0,0.00054794,120]
[320858936,1711647038404,-500.48826394,0.00054794,2]
[320858937,1711647038413,-500.0,0.00054794,120]
[320858939,1711647038422,-500.0,0.00054794,120]
[320858941,1711647038431,-500.0,0.00054794,120]
[320858943,1711647038441,-671.916266,0.0005605,120]
[320858945,1711647038449,-374.90438402,0.00057152,2]
[320858947,1711647038459,-374.90438402,0.00061386,2]
[320858949,1711647038469,-500.0,0.00061483,120]
[320858952,1711647038478,-156.51744269,0.00061483,120]
[320858954,1711647038487,-500.0,0.00061483,120]
[320858956,1711647038496,-620.0,0.00061483,120]
[320858958,1711647038505,-500.0,0.00061483,120]
[320858960,1711647038515,-500.0,0.00061483,120]
[320858962,1711647038526,-500.0,0.00061483,120]
[320858964,1711647038537,-11366.48056886,0.00061484,61]
[320858966,1711647038546,-541.65,0.00061484,120]
[320858968,1711647038555,-500.0,0.00061484,120]
[320858970,1711647038564,-500.0,0.00061484,120]
[320858972,1711647038574,-571.14687994,0.00061484,120]
[320858974,1711647038584,-500.0,0.00061484,120]
[320858976,1711647038594,-500.0,0.00061484,120]
[320858978,1711647038603,-2537.82,0.00061484,120]
[320858980,1711647038612,-2537.82,0.00061484,120]
[320858982,1711647038623,-500.0,0.00061484,120]
[320858984,1711647038632,-500.0,0.00061484,120]
[320858986,1711647038642,-432.95785474,0.00061484,120]
[320858988,1711647038651,-500.0,0.00061484,120]
[320858990,1711647038661,-500.0,0.00061484,120]
[320858992,1711647038670,-1147.66,0.00061484,120]
[320858994,1711647038680,-1147.66,0.00061484,120]
[320858996,1711647038689,-2542.95,0.00061484,120]
[320858998,1711647038698,-500.0,0.00061484,120]
[320859000,1711647038708,-500.0,0.00061484,120]
[320859002,1711647038722,-500.0,0.00061484,120]
[320859004,1711647038731,-435.67929192,0.00061485,120]
[320859006,1711647038740,-500.0,0.00061485,120]
[320859008,1711647038750,-265.1372965,0.00061485,120]
[320859010,1711647038761,-478.34578516,0.00061485,120]
[320859012,1711647038770,-219.99754063,0.00061485,120]
[320859014,1711647038779,-51405.53693456,0.00061485,2]
[320859016,1711647038790,-541.65,0.00061485,120]
[320859018,1711647038799,-500.0,0.00061485,120]
[320859020,1711647038809,-500.0,0.00061485,120]
[320859022,1711647038818,-500.0,0.00061485,120]
[320859024,1711647038827,-2542.95,0.00061485,120]
[320859026,1711647038837,-500.0,0.00061485,120]
[320859028,1711647038845,-500.0,0.00061486,120]
[320859030,1711647038854,-500.0,0.00061486,120]
[320859032,1711647038864,-500.95638156,0.00061486,120]
[320859034,1711647038873,-155.33111387,0.00061486,120]
[320859036,1711647038882,-500.0,0.00061486,120]
[320859038,1711647038892,-500.0,0.00061486,120]
[320859040,1711647038902,-500.0,0.00061486,120]
[320859042,1711647038911,-500.0,0.00061486,120]
[320859044,1711647038921,-617.34446989,0.00061486,120]
[320859046,1711647038930,-500.0,0.00061486,120]
[320859048,1711647038940,-500.0,0.00061486,120]
[320859050,1711647038949,-503.11948425,0.00061486,120]
[320859052,1711647038958,-500.0,0.00061486,120]
[320859054,1711647038968,-500.0,0.00061486,120]
[320859056,1711647038978,-500.0,0.00061486,120]
[320859058,1711647038987,-500.0,0.00061486,120]
[320859060,1711647038997,-500.91283844,0.00061486,120]
[320859062,1711647039006,-500.0,0.00061486,120]
[320859064,1711647039015,-500.0,0.00061486,120]
[320859066,1711647039025,-256.09941801,0.00061486,120]
[320859069,1711647039038,-243.90058199,0.00061486,120]
[320859071,1711647039047,-500.0,0.00061486,120]
[320859073,1711647039056,-500.0,0.00061486,120]
[320859075,1711647039065,-536.87190349,0.00061486,120]
[320859077,1711647039074,-500.0,0.00061486,120]
[320859079,1711647039083,-500.0,0.00061486,120]
[320859081,1711647039092,-500.0,0.00061486,120]
[320859083,1711647039101,-500.0,0.00061486,120]
[320859085,1711647039111,-500.0,0.00061486,120]
[320859087,1711647039119,-500.0,0.00061486,120]
[320859089,1711647039129,-1000.0,0.00061486,2]
[320859091,1711647039138,-500.0,0.00061486,120]
[320859093,1711647039148,-500.0,0.00061486,120]
[320859095,1711647039157,-500.0,0.00061486,120]
[320859097,1711647039165,-500.0,0.00061486,120]
[320859099,1711647039175,-501.66255192,0.00061486,120]
[320859101,1711647039184,-541.65,0.00061486,120]
[320859103,1711647039193,-578.43,0.00061486,120]
[320859105,1711647039202,-458.46666244,0.00061486,120]
[320859107,1711647039212,-500.0,0.00061486,120]
[320859109,1711647039221,-500.0,0.00061486,120]
[320859111,1711647039230,-500.0,0.00061486,120]
[320859113,1711647039239,-500.0,0.00061486,120]
[320859115,1711647039248,-500.0,0.00061486,120]
[320859117,1711647039257,-500.0,0.00061486,120]
[320859119,1711647039267,-500.0,0.00061486,120]
[320859121,1711647039276,-500.0,0.00061486,120]
[320859123,1711647039285,-500.0,0.00061486,120]
[320859125,1711647039294,-611.08890482,0.00061486,120]
[320859127,1711647039303,-500.0,0.00061486,120]
[320859129,1711647039313,-500.0,0.00061486,120]
[320859131,1711647039322,-500.0,0.00061486,120]
[320859133,1711647039332,-500.0,0.00061486,120]
[320859135,1711647039341,-500.0,0.00061486,120]
[320859137,1711647039350,-500.0,0.00061486,120]
[320859139,1711647039361,-500.0,0.00061486,120]
[320859141,1711647039370,-2537.82,0.00061486,120]
[320859143,1711647039378,-500.0,0.00061486,120]
[320859145,1711647039388,-500.0,0.00061486,120]
[320859147,1711647039398,-153.62343981,0.00061486,120]
[320859149,1711647039407,-500.0,0.00061486,120]
[320859151,1711647039416,-500.0,0.00061486,120]
[320859153,1711647039425,-521.85,0.00061486,120]
[320859155,1711647039436,-158.84663609,0.00061486,120]
[320859168,1711647039546,-341.15336391,0.00061486,120]
[320859170,1711647039555,-500.0,0.00061486,120]
[320859172,1711647039566,-500.0,0.00061486,120]
[320859174,1711647039576,-500.0,0.00061486,120]
[320859176,1711647039587,-488.59408214,0.00061486,120]